Cogmind - Beta 13 @@@ ROGUE MODE // 2024.07.07 @ 23:06:07 Player: OmnomBrains Result: Destroyed by MF-KK7(R) with Subdweller Beam Cannon Performance ------------- Evolutions (0) 0 Regions Visited (3) 600 Robots Destroyed (23) 115 Value Destroyed (479) 479 Prototype IDs (0) 0 Alien Tech Used (0) 0 Bonus (0) 0 TOTAL SCORE: 1194 Bonus ------- None Cogmind --------- Core Integrity 0/250 Matter 269/300 Energy 100/100 System Corruption 0% Temperature Cool (9) Movement Rolling (110) Location -10/Subcaves Parts ------- > --- POWER (1) -------- (None) > --- PROPULSION (2) --- Subdweller Monowheel Subdweller Monowheel > --- UTILITY (2) ------ Small Storage Unit > --- WEAPON (2) ------- Subdweller Laser Subdweller Machine Gun > --- INVENTORY (8) ---- Subdweller Power Source Subdweller Power Source Light Nuclear Core Subdweller Beam Cannon Grenade Launcher Mining Laser Flamer Peak State ------------ > --- POWER ------------ Ion Engine > --- PROPULSION ------- Subdweller Monowheel Subdweller Monowheel > --- UTILITY ---------- Small Storage Unit Makeshift Light Armor Plating > --- WEAPON ----------- Subdweller Laser Subdweller Machine Gun > --- INVENTORY -------- Subdweller Power Source Light Nuclear Core EM Pulse Gun Subdweller Beam Cannon Grenade Launcher Mining Laser Flamer [Rating: 15] Favorites ----------- Power Ion Engine Engine Ion Engine Power Core Light Nuclear Core Propulsion Aluminum Leg Leg Aluminum Leg Wheel Subdweller Monowheel Utility Small Storage Unit Device Sensor Array Storage Small Storage Unit Protection Makeshift Light Armor Plating Weapon Subdweller Laser Energy Gun Subdweller Laser Ballistic Gun Assault Rifle Launcher Grenade Launcher Special Weapon Mining Laser Build | -11 -10 -10 -10 ------- Run | Yrd Mat Min Sub Slots Evolved . | . . . . Power . | . . . . Propulsion . | . . . . Utility . | . . . . Weapon . | . . . . Parts Attached 32 | 8 7 5 12 Power 5 | 1 1 2 1 Engine 4 | 1 1 1 1 Core 1 | . . 1 . Reactor . | . . . . Propulsion 10 | 2 3 2 3 Treads . | . . . . Leg 8 | 2 3 2 1 Wheel 2 | . . . 2 Hover . | . . . . Flight . | . . . . Utility 4 | 2 1 . 1 Device 2 | 1 1 . . Storage 1 | 1 . . . Processor . | . . . . Hackware . | . . . . Protection 1 | . . . 1 Artifact . | . . . . Weapon 13 | 3 2 1 7 Energy Gun 4 | 1 1 . 2 Energy Cannon . | . . . . Ballistic Gun 7 | 2 1 . 4 Ballistic Cannon . | . . . . Launcher 1 | . . . 1 Special Weapon 1 | . . 1 . Impact Weapon . | . . . . Slashing Weapon . | . . . . Piercing Weapon . | . . . . Special Melee Weapon . | . . . . Unidentified Prototypes . | . . . . Parts Lost 14 | . 3 2 9 Power 2 | . . . 2 Propulsion 6 | . 2 1 3 Utility 3 | . 1 1 1 Weapon 3 | . . . 3 Highest Loss Streak 4 | . 3 1 4 To Critical Strikes . | . . . . Average Slot Usage (%) 80 | . 89 96 76 Engine 13 | . 14 14 13 Leg 8 | . 25 26 2 Wheel 2 | . . . 3 Device 2 | . 8 11 . Storage 14 | . 14 14 14 Protection 10 | . . . 13 Energy Gun 12 | . 5 14 13 Ballistic Gun 14 | . 20 12 13 Naked Turns . | . . . . Heaviest Build 22 | 12 14 14 22 Greatest Support 40 | 20 20 20 40 Greatest Overweight (x) 7 | . 3 1 7 Average Overweight (x) 1 | . . . 3 Largest Inventory Capacity 8 | 8 8 8 8 Average Capacity 7 | 7 8 8 8 Most Carried 8 | 5 6 8 8 Average Carried 6 | 3 4 6 7 Final Capacity 8 | 8 8 8 8 Final Carried 7 | 3 5 7 7 Class Distribution -------------------- 94% | Mutant 5% | Scavenger-Mutant Dominant Class ---------------- Mutant | -10/Materials Mutant | -10/Mines Mutant | -10/Subcaves Resources | -11 -10 -10 -10 ----------- Run | Yrd Mat Min Sub Matter Collected 774 | 326 110 141 197 Remotely . | . . . . Salvage Created 604 | 75 164 167 198 Parts 52 | 10 14 11 17 Haulers Intercepted . | . . . . Recyclers Shooed . | . . . . Parts Field Recycled . | . . . . Retrieved Matter . | . . . . Parts Self-Destructed 7 | . . . 7 Prevented . | . . . . Kills | -11 -10 -10 -10 ------- Run | Yrd Mat Min Sub Combat Hostiles Destroyed 19 | . 5 7 7 Guns 18 | . 5 7 6 AOE 1 | . . . 1 Classes Destroyed 5 | 1 3 . 1 Tunneler 3 | 3 . . . Watcher 1 | . 1 . . Swarmer 11 | . 3 5 3 Grunt 4 | . 2 2 . Subdweller 4 | . . . 4 Best Kill Streak 7 | 1 4 7 3 Combat Bots Only 3 | . 3 3 3 Max Kills in Single Turn 1 | 1 1 1 1 Gunslinging . | . . . . Exploded 1 | . . . 1 Melee . | . . . . Uniques/NPCs Destroyed . | . . . . Combat | -11 -10 -10 -10 -------- Run | Yrd Mat Min Sub Hostile Shots Fired 140 | . 34 42 64 Missed 35 | . 6 8 21 Damage Taken 1592 | . 426 328 838 Core 263 | . 60 49 154 Absorbed by Shields . | . . . . Regen/Repaired (Parts) 87 | . 87 . . Core Remaining (%) 100 | 100 . . . Volleys Fired 123 | 14 26 22 61 Largest 2 | 2 2 2 2 Hottest 100 | 40 60 100 90 Shots Fired 223 | 28 40 40 115 Gun 219 | 28 40 37 114 Cannon . | . . . . Launcher 1 | . . . 1 Special 3 | . . 3 . Kinetic 136 | 28 33 19 56 Thermal 86 | . 7 21 58 Explosive 1 | . . . 1 Electromagnetic . | . . . . Robot Hit Streak 9 | 5 6 8 9 Robot Miss Streak 4 | 4 4 3 2 Penetration Max . | . . . . Secondary Targets 4 | . . 3 1 Max Gunslinging Chain 1 | . . 1 1 Shots Hit Robots 105 | 15 24 22 44 Core Hits 36 | 5 11 10 10 Critical Kills . | . . . . Critical Parts Destroyed . | . . . . Critical Strikes . | . . . . Melee Attacks . | . . . . Impact . | . . . . Slashing . | . . . . Piercing . | . . . . Sneak Attacks . | . . . . Combat Hostiles . | . . . . Follow-up Attacks . | . . . . Damage Inflicted 1362 | 168 301 255 638 Guns 1254 | 168 275 255 556 Cannons . | . . . . Explosions 108 | . 26 . 82 Melee . | . . . . Ramming . | . . . . Kinetic 772 | 168 221 124 259 Thermal 508 | . 80 131 297 Explosive 82 | . . . 82 Electromagnetic . | . . . . Impact . | . . . . Slashing . | . . . . Piercing . | . . . . Highest Corruption . | . . . . Average Corruption . | . . . . Corruption Purged . | . . . . Corruption Blocked . | . . . . Overload Shots . | . . . . Overflow Damage 40 | . 40 . . Projectiles . | . . . . Explosions 40 | . 40 . . Melee . | . . . . Knockbacks . | . . . . Impact . | . . . . Kinetic . | . . . . Secondary . | . . . . Self-Inflicted Damage 86 | . 86 . . Shots 1 | . 1 . . Rammed . | . . . . Targets Rammed . | . . . . Kicked . | . . . . Crushed . | . . . . Highest Temperature 57 | . 17 57 10 Average Temperature 18 | . 10 26 7 Received Heat Transfer 393 | . 198 96 99 Siege Activations . | . . . . Robots Corrupted . | . . . . Combat Hostiles . | . . . . Parts Fried . | . . . . Impact Corruptions . | . . . . Robots Melted . | . . . . Combat Hostiles . | . . . . Parts Melted 1 | . . 1 . Heat Transferred 950 | . 175 300 475 Parts Sabotaged . | . . . . Parts Stolen . | . . . . Parts Stripped . | . . . . Power Chain Reactions . | . . . . Alert | -11 -10 -10 -10 ------- Run | Yrd Mat Min Sub Peak Influence 227 | 15 160 227 . Initial 62 | . 9 62 . Average 88 | 5 54 167 . Maximum Alert Level 1 | . . 1 . Low Security (%) 91 | 100 100 78 . Level 1 8 | . . 21 . Level 2 . | . . . . Level 3 . | . . . . Level 4 . | . . . . Level 5 . | . . . . High Security . | . . . . Max Security . | . . . . Squads Dispatched 1 | . 1 . . Investigation . | . . . . Extermination . | . . . . Reinforcement 1 | . 1 . . Assault . | . . . . Garrison . | . . . . Intercept . | . . . . Searches Triggered . | . . . . Construction Impeded . | . . . . Haulers Reinforced . | . . . . Active Scanning Responses . | . . . . Cargo Convoy Interrupts . | . . . . Stealth | -11 -10 -10 -10 --------- Run | Yrd Mat Min Sub Distress Signals . | . . . . Communications Jammed . | . . . . Distress Signals . | . . . . Times Spotted 25 | . 9 7 9 Peak Tracking Total 7 | . 7 3 3 Tactical Retreats 1 | . . 1 . Traps | -11 -10 -10 -10 ------- Run | Yrd Mat Min Sub Traps Triggered 1 | . . . 1 Indirectly . | . . . . Trap Hack Attempts . | . . . . Triggered . | . . . . Disarmed 3 | . 3 . . Reprogrammed . | . . . . Reused . | . . . . Traps Extracted . | . . . . Installed 1 | . . . 1 Triggered . | . . . . Most Traps Carried 1 | . . . 1 Machines | -11 -10 -10 -10 ---------- Run | Yrd Mat Min Sub Machines Disabled 1 | . 1 . . Max in Single Turn 1 | . 1 . . Machines Repaired . | . . . . Machines Dismantled . | . . . . Machines Sabotaged . | . . . . Overloaded Fab Kills . | . . . . Hacking | -11 -10 -10 -10 --------- Run | Yrd Mat Min Sub Machines Accessed 3 | . 3 . . Terminals 1 | . 1 . . Fabricators . | . . . . Repair Stations 1 | . 1 . . Recycling Units 1 | . 1 . . Scanalyzers . | . . . . Garrison Access . | . . . . Total Hacks 5 | . 5 . . Successful 4 | . 4 . . Failed 1 | . 1 . . Catastrophic . | . . . . Database Lockouts . | . . . . Manual 2 | . 2 . . Terminals 2 | . 2 . . Fabricators . | . . . . Repair Stations 2 | . 2 . . Recycling Units 1 | . 1 . . Scanalyzers . | . . . . Garrison Access . | . . . . Terminal Hacks 1 | . 1 . . Disarm Traps 1 | . 1 . . Fabricator Hacks . | . . . . Repair Station Hacks 2 | . 2 . . Scan Component 1 | . 1 . . Repair 1 | . 1 . . Recycling Unit Hacks 1 | . 1 . . Retrieve Components 1 | . 1 . . Scanalyzer . | . . . . Garrison Access Hacks . | . . . . Unauthorized Hacks . | . . . . Terminals . | . . . . Fabricators . | . . . . Repair Stations . | . . . . Recycling Units . | . . . . Scanalyzers . | . . . . Garrison Access . | . . . . Data Cores Recovered . | . . . . Used . | . . . . Hacking Detections 2 | . 2 . . Full Trace Events . | . . . . Feedback Events . | . . . . Feedback Blocked . | . . . . Robot Schematics Acquired . | . . . . Robots Built . | . . . . Authchips . | . . . . Time . | . . . . Total Robot Build Rating . | . . . . Part Schematics Acquired . | . . . . Parts Built . | . . . . Authchips . | . . . . Time . | . . . . Total Part Build Rating . | . . . . Parts Repaired 1 | . 1 . . Time 26 | . 26 . . Parts Recycled . | . . . . Recycled Matter . | . . . . Retrieved Matter . | . . . . Retrieved Components 5 | . 5 . . Parts Scanalyzed . | . . . . Part Schematics Acquired . | . . . . Parts Damaged . | . . . . Bothacking | -11 -10 -10 -10 ------------ Run | Yrd Mat Min Sub Used RIF Installer . | . . . . Robots Hacked . | . . . . Non-combat . | . . . . Combat . | . . . . Robot Hacks Applied . | . . . . Relay Couplers Released . | . . . . Fabnet Peak Effective % . | . . . . Robots Rewired . | . . . . Allies Hacked . | . . . . Hacks Repelled . | . . . . Allies | -11 -10 -10 -10 -------- Run | Yrd Mat Min Sub Total Allies . | . . . . Largest Group . | . . . . Highest-Rated Group . | . . . . Highest-Rated Ally . | . . . . Total Orders . | . . . . Ally Attacks . | . . . . Total Damage . | . . . . Kills . | . . . . Allies Corrupted . | . . . . Allies Melted . | . . . . Intel | -11 -10 -10 -10 ------- Run | Yrd Mat Min Sub Robot Analysis Total . | . . . . Derelict Logs Recovered 3 | . . 1 2 Drone Launches . | . . . . Drone Recoveries . | . . . . Exploration | -11 -10 -10 -10 ------------- Run | Yrd Mat Min Sub Turns Passed 2173 | 144 254 264 1511 Spaces Moved 899 | 80 140 144 535 Core 280 | 14 4 . 262 Treads . | . . . . Legs 449 | 66 136 144 103 Wheels 170 | . . . 170 Hover . | . . . . Flight . | . . . . Fastest Speed 50 | 50 120 120 110 Average Speed 192 | 107 122 120 242 Slowest Speed 400 | 120 200 190 400 Overloaded Moves . | . . . . Propulsion Burnouts . | . . . . Robots Hopped . | . . . . Cave-ins Triggered . | . . . . Exploration Rate (%) 28 | 5 30 36 41 Regions Visited 3 Branch Regions 2 Pre-discovered Areas 1 | . . . 1 Known Exits Taken . | . . . . Unknown Exits Taken 3 | 1 1 1 . Scrap Searched 1 | . . . 1 Spaces Dug . | . . . . Terrain Destroyed 28 | . 23 . 5 Melee . | . . . . Projectile . | . . . . AOE 28 | . 23 . 5 Terrain Rammed . | . . . . Walls Destroyed . | . . . . Machines Disabled . | . . . . Actions | -11 -10 -10 -10 --------- Run | Yrd Mat Min Sub Total 1112 | 110 182 186 634 Wait 21 | 2 . 11 8 Move 896 | 79 139 143 535 Hop . | . . . . Pick Up 31 | 7 8 4 12 Fast Attach 4 | 3 . . 1 Attach 17 | 4 4 1 8 Detach . | . . . . Swap 11 | 1 3 4 3 Drop 8 | . 2 1 5 Fire 123 | 14 26 22 61 Melee . | . . . . Ram . | . . . . Kick . | . . . . Crush . | . . . . Escape Stasis . | . . . . Rewire . | . . . . Trap 1 | . . . 1 Miscellaneous . | . . . . Route ------- -11/Scrapyard -10/Materials -10/Mines (discovered 2 exits: [*Mat] / [*Sub]) -10/Subcaves History --------- Turn | Location | Event 24 | -11/Scrapyard | Discovered new exit (range 12) 145 | -11/Scrapyard | Entered Materials 280 | -10/Materials | Lost 3 parts (2n1u) 287 | -10/Materials | Discovered new exit (range 16) 326 | -10/Materials | Build established: Mutant 348 | -10/Materials | Repaired Assault Rifle 399 | -10/Materials | Entered Mines 592 | -10/Mines | Discovered new exit (range 8) 635 | -10/Mines | Learned Materials emergency access door positions 657 | -10/Mines | Discovered new exit (range 3) 663 | -10/Mines | Entered Subcaves 695 | -10/Subcaves | Learned 8 Materials zone layouts 743 | -10/Subcaves | Core integrity fell below 50% 863 | -10/Subcaves | Core integrity fell below 20% 923 | -10/Subcaves | Lost 4 parts (1p1n2w) 1456 | -10/Subcaves | Shifting Twisted Machinery released Shrapnel Trap 1631 | -10/Subcaves | Learned location of Storage (-8) 1877 | -10/Subcaves | Shifting Twisted Machinery released Sub. Monowheel 1968 | -10/Subcaves | Shifting Twisted Machinery released Flamer 2174 | -10/Subcaves | Destroyed by MF-KK7(R) with Subdweller Beam Cannon Last Messages --------------- OC-67G(u) tweaks Twisted Machinery. Acquired Sub. Monowheel. OC-67G(u) builds Twisted Machinery. Flamer falls loose from the Twisted Machinery. Dropped Mak. Sword. Acquired Flamer. Dropped Shrapnel Trap. VZ-SMX(R) destroyed. Subatomizers dissect the Sub. Optics. 9O-3A2(R) destroyed. Acquired 30 matter. Acquired Sub. Monowheel. Acquired 41 matter. Acquired Sub. Power Source. Dropped EM Pulse Gun. Acquired Shrapnel Trap. Dropped Shrapnel Trap. Installed Shrapnel Trap. Ion Engine destroyed. Mak. Light Armor Plating destroyed. Map ----- +----------------------------------------------------+ | ??????????????????????????????????????????? | | ??????????????????????????????????????????? | | ??????????????????????????????????????????? | | ??????????????????"???????????????????????? | | ?????????????????? ???????????????????????? | | ????????????????? #??????????????????????? | | ????????????????"" ??????????????????????? | | ????????????????#" #??????????????????????? | | ???????????????##""#??????????????????????? | | ???????????????# #??????????????????????? | | ???????????????# ##?????????????????????? | | ??????????????## ##????????????????????? | | ??????????????# R ##???????????????????? | | ??????????????# R ##??????????????????? | | ???????????????# ###????????????????? | | ???????????????# ^ ##???????????????? | | ???????????????# #???????????????? | | ???????????????# ## #??????????????? | | ???????????????# ##??? #??????????????? | | ???????????????# #?????? #??????????????? | | ???????????????# #??????????????????????? | | ???????????????# #??????????????????????? | | ???????????????# #??????????????????????? | | ???????????????# #??????????????????????? | | ???????????????## ###????????????????????? | | ????????????????##@ ##???????????????????? | | ????????????????## #???????????????????? | | ????????????????# #???????????????????? | | ????????????????# ##??????????????????? | | ????????????????# #########??????????? | | ????????????????## ## #??????????? | | ?????????????????## ##?????????? | | ??????????????????## " ##????????? | | ??????????????####?# "" ##???????? | | ??????????????# #?# "" ##?????## | | ??????????????# ###"" ### #### | | ??????????????# ##"" ### | | ??????????????# #### ### | | ??????????????## #### ### | | ???????????????# ""#?##### ## | | ??????????????## ""##?## #### #? | | ??????????????#"" ### ##??#" #? | | ??????????????#" # ####???#" #? | | ??????????????# " """ #?????#" ##? | | ??????????????### " " ##????? """ ##?? | | ???????????????#" ""## #??????""" #??? | | ???????????????#" ##### #??? ???" #??? | | ???????????????## ???# #?? ""? " #??? | | ????????????????# #???# ###"""" ? ####### | | ????????????????# ##?## """""" ""??# # | +----------------------------------------------------+ Best States ------------- Heat Dissipation 25 Energy Generation 10 Energy Capacity 250 Matter Stores 300 Matter Capacity 300 Sight Range 16 Robot Scan Range 14 Terrain Scan Density 10 Armor Coverage 100 Evasion (%) 55 Item Schematics ----------------- None Robot Schematics ------------------ None Fabricated ------------ Nothing Alien Tech Used ----------------- None Achievements -------------- None Challenges ------------ None Game ------ Seed OpticalTacticalAutocannon Manual? 0 Play Time 00:18:28 Cumulative 17.1 hours Start 2024.07.07 @ 22:50:26 End 2024.07.07 @ 23:06:07 Sessions 1 Manual Loads 0 Difficulty Rogue Special Mode None Game No. 21 Rogue 21 Adventurer 0 Explorer 0 Win Type - Total 0 Types 0/0/0/0/0/0/0/0/0 Lore% 14 Gallery% 19 Achievement% 16 Wizard Run 0 Options --------- Layout 1 ASCII 0 Keyboard 0 Movement Mouse Keybinds 0 Fullscreen 1 Font 24/Terminus Map View 50x35 Zoom Use 0% Tactical HUD 0 Map Filters NONE Filters NONE Steam 1 RUN: 7530b47e-5907-44ae-b8d2-cd56f228237e